[Event "Early Titled Tuesday Blitz | February 8 2022"]
[White "Tologon tegin, Semetei"]
[Black "Goldin, Roman"]
[WhiteFideId "13800574"]
[BlackFideId "2803860"]
[WhiteElo "2258"]
[BlackElo "2312"]
[Result "1-0"]
[Round "03"]
[TimeControl "180+1"]
[Date "2022.02.08"]
[WhiteClock "0:00:10"]
[BlackClock "0:00:01"]

1. e4 {[%clk 0:03:00]}  Nc6 {[%clk 0:02:54]} 2. Nc3 {[%clk 0:02:59]}  Nf6 {[%clk 0:02:51]} 3. Bc4 {[%clk 0:02:53]}  Nxe4 {[%clk 0:02:50]} 4. Bxf7+ {[%clk 0:02:52]}  Kxf7 {[%clk 0:02:49]} 5. Nxe4 {[%clk 0:02:52]}  e5 {[%clk 0:02:42]} 6. d4 {[%clk 0:02:49]}  Nxd4 {[%clk 0:01:26]} 7. c3 {[%clk 0:02:26]}  Ne6 {[%clk 0:01:24]} 8. Qh5+ {[%clk 0:02:11]}  g6 {[%clk 0:01:21]} 9. Qxe5 {[%clk 0:02:09]}  Bg7 {[%clk 0:01:22]} 10. Qd5 {[%clk 0:02:07]}  Re8 {[%clk 0:01:16]} 11. Nf3 {[%clk 0:02:03]}  Kg8 {[%clk 0:01:10]} 12. Bg5 {[%clk 0:02:01]}  c6 {[%clk 0:01:04]} 13. Qb3 {[%clk 0:01:51]}  Qc7 {[%clk 0:00:47]} 14. Nf6+ {[%clk 0:01:50]}  Bxf6 {[%clk 0:00:46]} 15. Bxf6 {[%clk 0:01:51]}  d5 {[%clk 0:00:46]} 16. O-O {[%clk 0:01:39]}  Nc5 {[%clk 0:00:44]} 17. Qb4 {[%clk 0:01:35]}  Ne4 {[%clk 0:00:42]} 18. Be5 {[%clk 0:01:25]}  Qf7 {[%clk 0:00:35]} 19. Rae1 {[%clk 0:01:18]}  Bg4 {[%clk 0:00:31]} 20. Rxe4 {[%clk 0:01:12]}  dxe4 {[%clk 0:00:28]} 21. Ng5 {[%clk 0:01:11]}  Qd5 {[%clk 0:00:23]} 22. Qxb7 {[%clk 0:01:11]}  Bd7 {[%clk 0:00:17]} 23. f4 {[%clk 0:00:18]}  h6 {[%clk 0:00:16]} 24. Nxe4 {[%clk 0:00:14]}  Qxe4 {[%clk 0:00:04]} 25. Qxd7 {[%clk 0:00:13]}  Rxe5 {[%clk 0:00:03]} 26. fxe5 {[%clk 0:00:13]}  Qe3+ {[%clk 0:00:03]} 27. Kh1 {[%clk 0:00:13]}  Qxe5 {[%clk 0:00:03]} 28. Qxc6 {[%clk 0:00:12]}  Qe8 {[%clk 0:00:01]} 29. Qd5+ {[%clk 0:00:10]} 1-0


[Site "https://www.chess.com"]

[Event "Early Titled Tuesday Blitz | February 8 2022"]
[White "Toncheva, Nadya"]
[Black "Tuleyeva-Aketayeva, Dana"]
[WhiteFideId "2924056"]
[BlackFideId "13701932"]
[WhiteElo "1920"]
[BlackElo "1944"]
[Result "1-0"]
[Round "03"]
[TimeControl "180+1"]
[Date "2022.02.08"]
[WhiteClock "0:00:49"]
[BlackClock "0:00:01"]

1. d4 {[%clk 0:03:00]}  Nf6 {[%clk 0:02:41]} 2. c4 {[%clk 0:03:01]}  e6 {[%clk 0:02:41]} 3. Nc3 {[%clk 0:03:01]}  c5 {[%clk 0:02:41]} 4. d5 {[%clk 0:03:01]}  exd5 {[%clk 0:02:42]} 5. cxd5 {[%clk 0:03:02]}  d6 {[%clk 0:02:43]} 6. e4 {[%clk 0:03:03]}  g6 {[%clk 0:02:43]} 7. f4 {[%clk 0:03:03]}  Bg7 {[%clk 0:02:43]} 8. Bb5+ {[%clk 0:03:04]}  Nfd7 {[%clk 0:02:42]} 9. Nf3 {[%clk 0:03:04]}  a6 {[%clk 0:02:38]} 10. Be2 {[%clk 0:03:02]}  b5 {[%clk 0:02:37]} 11. O-O {[%clk 0:02:56]}  O-O {[%clk 0:02:37]} 12. a4 {[%clk 0:02:54]}  b4 {[%clk 0:02:34]} 13. Nb1 {[%clk 0:02:55]}  Qb6 {[%clk 0:02:26]} 14. Kh1 {[%clk 0:02:52]}  a5 {[%clk 0:02:24]} 15. Nbd2 {[%clk 0:02:52]}  Ba6 {[%clk 0:02:14]} 16. Bxa6 {[%clk 0:02:51]}  Nxa6 {[%clk 0:02:08]} 17. Nc4 {[%clk 0:02:51]}  Qc7 {[%clk 0:02:09]} 18. Qc2 {[%clk 0:02:47]}  Nb6 {[%clk 0:02:08]} 19. Nxb6 {[%clk 0:02:38]}  Qxb6 {[%clk 0:02:07]} 20. Nd2 {[%clk 0:02:39]}  b3 {[%clk 0:01:44]} 21. Qxb3 {[%clk 0:02:23]}  Qxb3 {[%clk 0:01:39]} 22. Nxb3 {[%clk 0:02:24]}  Nb4 {[%clk 0:01:40]} 23. Rb1 {[%clk 0:02:14]}  Rfb8 {[%clk 0:01:38]} 24. Rf3 {[%clk 0:02:03]}  Nc2 {[%clk 0:01:25]} 25. Nd2 {[%clk 0:01:55]}  Rb4 {[%clk 0:01:01]} 26. b3 {[%clk 0:01:52]}  Nd4 {[%clk 0:00:56]} 27. Rd3 {[%clk 0:01:44]}  Rab8 {[%clk 0:00:18]} 28. Ba3 {[%clk 0:01:41]}  c4 {[%clk 0:00:19]} 29. Bxb4 {[%clk 0:01:39]}  cxd3 {[%clk 0:00:18]} 30. Bxd6 {[%clk 0:01:37]}  Re8 {[%clk 0:00:14]} 31. Bc5 {[%clk 0:01:33]}  Rc8 {[%clk 0:00:11]} 32. Bxd4 {[%clk 0:01:32]}  Bxd4 {[%clk 0:00:12]} 33. Nc4 {[%clk 0:01:23]}  Bc3 {[%clk 0:00:09]} 34. Rd1 {[%clk 0:01:21]}  Rb8 {[%clk 0:00:06]} 35. Rxd3 {[%clk 0:01:00]}  Rxb3 {[%clk 0:00:06]} 36. g3 {[%clk 0:01:00]}  Rb1+ {[%clk 0:00:05]} 37. Kg2 {[%clk 0:01:00]}  Bb4 {[%clk 0:00:04]} 38. d6 {[%clk 0:00:58]}  Bc5 {[%clk 0:00:03]} 39. d7 {[%clk 0:00:57]}  Rg1+ {[%clk 0:00:03]} 40. Kh3 {[%clk 0:00:53]}  Rd1 {[%clk 0:00:01]} 41. Rxd1 {[%clk 0:00:49]} 1-0


[Site "https://www.chess.com"]

[Event "Early Titled Tuesday Blitz | February 8 2022"]
[White "Urazayev, Arystanbek"]
[Black "Lazavik, Denis"]
[WhiteFideId "13709810"]
[BlackFideId "13515110"]
[WhiteElo "2321"]
[BlackElo "2436"]
[Result "1-0"]
[Round "03"]
[TimeControl "180+1"]
[Date "2022.02.08"]
[WhiteClock "0:00:42"]
[BlackClock "0:00:21"]

1. e4 {[%clk 0:03:00]}  e5 {[%clk 0:03:00]} 2. Nf3 {[%clk 0:03:01]}  Nc6 {[%clk 0:03:00]} 3. Bb5 {[%clk 0:03:02]}  a6 {[%clk 0:03:00]} 4. Ba4 {[%clk 0:03:02]}  Nf6 {[%clk 0:03:00]} 5. d3 {[%clk 0:03:02]}  d6 {[%clk 0:03:00]} 6. c4 {[%clk 0:03:03]}  g6 {[%clk 0:02:52]} 7. Nc3 {[%clk 0:03:03]}  Bg7 {[%clk 0:02:53]} 8. Nd5 {[%clk 0:03:04]}  O-O {[%clk 0:02:52]} 9. Bg5 {[%clk 0:03:03]}  Nb8 {[%clk 0:02:51]} 10. O-O {[%clk 0:03:03]}  c6 {[%clk 0:02:50]} 11. Nc3 {[%clk 0:02:59]}  h6 {[%clk 0:02:49]} 12. Bh4 {[%clk 0:02:52]}  Nbd7 {[%clk 0:02:36]} 13. d4 {[%clk 0:02:52]}  exd4 {[%clk 0:02:33]} 14. Nxd4 {[%clk 0:02:50]}  Qb6 {[%clk 0:02:27]} 15. Nde2 {[%clk 0:02:30]}  Re8 {[%clk 0:02:13]} 16. Bc2 {[%clk 0:02:03]}  Qc5 {[%clk 0:01:43]} 17. b3 {[%clk 0:01:50]}  Nh5 {[%clk 0:01:40]} 18. Rc1 {[%clk 0:01:41]}  Ndf6 {[%clk 0:01:22]} 19. Na4 {[%clk 0:01:40]}  Qa3 {[%clk 0:01:22]} 20. Ng3 {[%clk 0:01:05]}  Nf4 {[%clk 0:01:15]} 21. Nb6 {[%clk 0:00:54]}  Bg4 {[%clk 0:01:11]} 22. Qd2 {[%clk 0:00:52]}  g5 {[%clk 0:01:05]} 23. Nxa8 {[%clk 0:00:52]}  Rxa8 {[%clk 0:01:04]} 24. f3 {[%clk 0:00:44]}  Be6 {[%clk 0:00:36]} 25. Nf5 {[%clk 0:00:44]}  Bxf5 {[%clk 0:00:35]} 26. exf5 {[%clk 0:00:45]}  Qxa2 {[%clk 0:00:22]} 27. Bg3 {[%clk 0:00:42]}  N6h5 {[%clk 0:00:22]} 28. f6 {[%clk 0:00:42]}  Bxf6 {[%clk 0:00:21]} 29. Bh7+ {[%clk 0:00:42]} 1-0


[Site "https://www.chess.com"]

[Event "Early Titled Tuesday Blitz | February 8 2022"]
[White "Vakhlamov, Igor L."]
[Black "Ponkratov, Pavel"]
[WhiteFideId "24126748"]
[BlackFideId "4157800"]
[WhiteElo "2401"]
[BlackElo "2487"]
[Result "0-1"]
[Round "03"]
[TimeControl "180+1"]
[Date "2022.02.08"]
[WhiteClock "0:02:16"]
[BlackClock "0:02:30"]

1. e4 {[%clk 0:03:00]}  e5 {[%clk 0:02:59]} 2. Nf3 {[%clk 0:03:00]}  Nf6 {[%clk 0:03:00]} 3. Nc3 {[%clk 0:03:00]}  Nc6 {[%clk 0:02:59]} 4. Bb5 {[%clk 0:03:01]}  Bd6 {[%clk 0:02:58]} 5. a3 {[%clk 0:03:01]}  O-O {[%clk 0:02:58]} 6. d3 {[%clk 0:03:01]}  Re8 {[%clk 0:02:56]} 7. O-O {[%clk 0:02:52]}  h6 {[%clk 0:02:56]} 8. h3 {[%clk 0:02:50]}  Bf8 {[%clk 0:02:53]} 9. Bc4 {[%clk 0:02:47]}  d6 {[%clk 0:02:43]} 10. Nh2 {[%clk 0:02:30]}  Be6 {[%clk 0:02:41]} 11. Bxe6 {[%clk 0:02:29]}  Rxe6 {[%clk 0:02:40]} 12. Ng4 {[%clk 0:02:27]}  Nxg4 {[%clk 0:02:36]} 13. Qxg4 {[%clk 0:02:28]}  Rg6 {[%clk 0:02:33]} 14. Qd1 {[%clk 0:02:24]}  Qh4 {[%clk 0:02:32]} 15. Kh2 {[%clk 0:02:22]}  Re8 {[%clk 0:02:30]} 16. f4 {[%clk 0:02:16]}  Qg3+ {[%clk 0:02:30]} 0-1


[Site "https://www.chess.com"]

[Event "Early Titled Tuesday Blitz | February 8 2022"]
[White "Vetokhin, Ilia"]
[Black "Gelman, Alexander"]
[WhiteFideId "24156078"]
[BlackFideId "4118316"]
[WhiteElo "1897"]
[BlackElo "2375"]
[Result "0-1"]
[Round "03"]
[TimeControl "180+1"]
[Date "2022.02.08"]
[WhiteClock "0:00:11"]
[BlackClock "0:00:09"]

1. d4 {[%clk 0:03:00]}  Nf6 {[%clk 0:02:59]} 2. c4 {[%clk 0:03:01]}  c5 {[%clk 0:02:59]} 3. d5 {[%clk 0:03:01]}  b5 {[%clk 0:03:00]} 4. cxb5 {[%clk 0:03:02]}  a6 {[%clk 0:03:00]} 5. b6 {[%clk 0:03:02]}  d6 {[%clk 0:03:00]} 6. a4 {[%clk 0:03:01]}  Qxb6 {[%clk 0:02:58]} 7. Nc3 {[%clk 0:03:01]}  g6 {[%clk 0:02:56]} 8. a5 {[%clk 0:03:01]}  Qb7 {[%clk 0:02:55]} 9. e4 {[%clk 0:02:59]}  Bg7 {[%clk 0:02:55]} 10. Bc4 {[%clk 0:02:46]}  Nbd7 {[%clk 0:02:55]} 11. f4 {[%clk 0:02:41]}  O-O {[%clk 0:02:55]} 12. Nf3 {[%clk 0:02:41]}  Ne8 {[%clk 0:02:48]} 13. O-O {[%clk 0:02:36]}  Nc7 {[%clk 0:02:49]} 14. Re1 {[%clk 0:02:22]}  Nb5 {[%clk 0:02:29]} 15. Qd3 {[%clk 0:02:21]}  Nd4 {[%clk 0:02:21]} 16. Ra2 {[%clk 0:01:31]}  Rb8 {[%clk 0:02:09]} 17. Nxd4 {[%clk 0:01:18]}  cxd4 {[%clk 0:01:58]} 18. Na4 {[%clk 0:01:18]}  Nc5 {[%clk 0:01:47]} 19. Nxc5 {[%clk 0:01:18]}  dxc5 {[%clk 0:01:48]} 20. b3 {[%clk 0:01:15]}  e6 {[%clk 0:01:45]} 21. Rae2 {[%clk 0:01:09]}  exd5 {[%clk 0:01:43]} 22. Bxd5 {[%clk 0:01:06]}  Qb5 {[%clk 0:01:33]} 23. Bc4 {[%clk 0:01:00]}  Qxa5 {[%clk 0:01:30]} 24. e5 {[%clk 0:00:57]}  Bf5 {[%clk 0:01:27]} 25. Qf3 {[%clk 0:00:55]}  Qb6 {[%clk 0:01:10]} 26. g4 {[%clk 0:00:52]}  Bd7 {[%clk 0:01:06]} 27. f5 {[%clk 0:00:51]}  Bc6 {[%clk 0:00:35]} 28. Qg3 {[%clk 0:00:50]}  Ba8 {[%clk 0:00:34]} 29. e6 {[%clk 0:00:38]}  Qc6 {[%clk 0:00:28]} 30. exf7+ {[%clk 0:00:33]}  Kh8 {[%clk 0:00:28]} 31. Re4 {[%clk 0:00:21]}  d3 {[%clk 0:00:20]} 32. Qxd3 {[%clk 0:00:18]}  Rbd8 {[%clk 0:00:20]} 33. Qg3 {[%clk 0:00:18]}  Rd4 {[%clk 0:00:20]} 34. fxg6 {[%clk 0:00:16]}  Rxe4 {[%clk 0:00:19]} 35. Rxe4 {[%clk 0:00:14]}  Qxe4 {[%clk 0:00:19]} 36. Bg5 {[%clk 0:00:10]}  Bd4+ {[%clk 0:00:18]} 37. Kf1 {[%clk 0:00:09]}  Qb1+ {[%clk 0:00:16]} 38. Ke2 {[%clk 0:00:08]}  Qc2+ {[%clk 0:00:16]} 39. Kf1 {[%clk 0:00:08]}  Qxg6 {[%clk 0:00:15]} 40. h4 {[%clk 0:00:08]}  Rxf7+ {[%clk 0:00:15]} 41. Bxf7 {[%clk 0:00:06]}  Qxf7+ {[%clk 0:00:16]} 42. Ke2 {[%clk 0:00:07]}  Qe6+ {[%clk 0:00:15]} 43. Kd3 {[%clk 0:00:07]}  Be4+ {[%clk 0:00:14]} 44. Kd2 {[%clk 0:00:07]}  Qd7 {[%clk 0:00:11]} 45. Qb8+ {[%clk 0:00:07]}  Kg7 {[%clk 0:00:11]} 46. Qf4 {[%clk 0:00:05]}  Be5+ {[%clk 0:00:09]} 47. Ke3 {[%clk 0:00:06]}  Bxf4+ {[%clk 0:00:10]} 48. Kxf4 {[%clk 0:00:07]}  Bc6 {[%clk 0:00:09]} 49. h5 {[%clk 0:00:07]}  Qd2+ {[%clk 0:00:08]} 50. Kf5 {[%clk 0:00:07]}  Bd7+ {[%clk 0:00:08]} 51. Ke5 {[%clk 0:00:07]}  Qxg5+ {[%clk 0:00:08]} 52. Kd6 {[%clk 0:00:08]}  Qxg4 {[%clk 0:00:09]} 53. Kc7 {[%clk 0:00:09]}  Qxh5 {[%clk 0:00:10]} 54. Kb6 {[%clk 0:00:10]}  Qd5 {[%clk 0:00:09]} 55. Ka5 {[%clk 0:00:11]} 0-1


[Site "https://www.chess.com"]

[Event "Early Titled Tuesday Blitz | February 8 2022"]
[White "Vivas Zamora, Fabian Ernesto"]
[Black "Golsta, Madara"]
[WhiteFideId "3902480"]
[BlackFideId "11607386"]
[WhiteElo "1966"]
[BlackElo "1997"]
[Result "1-0"]
[Round "03"]
[TimeControl "180+1"]
[Date "2022.02.08"]
[WhiteClock "0:00:09"]
[BlackClock "0:00:01"]

1. c4 {[%clk 0:02:40]}  Nf6 {[%clk 0:02:59]} 2. Nc3 {[%clk 0:02:39]}  g6 {[%clk 0:02:58]} 3. g3 {[%clk 0:02:38]}  d5 {[%clk 0:02:55]} 4. cxd5 {[%clk 0:02:35]}  Nxd5 {[%clk 0:02:54]} 5. Qa4+ {[%clk 0:02:25]}  Nc6 {[%clk 0:02:46]} 6. Bg2 {[%clk 0:02:21]}  Be6 {[%clk 0:02:39]} 7. Nf3 {[%clk 0:02:08]}  Bg7 {[%clk 0:02:38]} 8. Ng5 {[%clk 0:02:00]}  O-O {[%clk 0:02:18]} 9. Nxe6 {[%clk 0:01:59]}  fxe6 {[%clk 0:02:19]} 10. O-O {[%clk 0:01:58]}  Nd4 {[%clk 0:02:00]} 11. e3 {[%clk 0:01:40]}  Nf3+ {[%clk 0:01:56]} 12. Kh1 {[%clk 0:01:36]}  Ne5 {[%clk 0:01:46]} 13. Qe4 {[%clk 0:01:27]}  Qd7 {[%clk 0:00:49]} 14. Nxd5 {[%clk 0:01:23]}  exd5 {[%clk 0:00:43]} 15. Qxd5+ {[%clk 0:01:23]}  Qxd5 {[%clk 0:00:36]} 16. Bxd5+ {[%clk 0:01:24]}  Kh8 {[%clk 0:00:37]} 17. Bxb7 {[%clk 0:01:18]}  Rab8 {[%clk 0:00:36]} 18. Be4 {[%clk 0:01:16]}  Nc4 {[%clk 0:00:34]} 19. Rb1 {[%clk 0:01:07]}  Nxb2 {[%clk 0:00:33]} 20. d3 {[%clk 0:00:59]}  Rb6 {[%clk 0:00:15]} 21. Bd2 {[%clk 0:00:48]}  h5 {[%clk 0:00:11]} 22. Ba5 {[%clk 0:00:46]}  Ra6 {[%clk 0:00:07]} 23. Bxc7 {[%clk 0:00:46]}  Rxa2 {[%clk 0:00:06]} 24. Bxg6 {[%clk 0:00:46]}  Na4 {[%clk 0:00:04]} 25. Kg2 {[%clk 0:00:30]}  Nc3 {[%clk 0:00:03]} 26. Rb8 {[%clk 0:00:28]}  Nd5 {[%clk 0:00:02]} 27. Rxf8+ {[%clk 0:00:27]}  Bxf8 {[%clk 0:00:03]} 28. Be5+ {[%clk 0:00:26]}  Kg8 {[%clk 0:00:03]} 29. Kf3 {[%clk 0:00:20]}  Bg7 {[%clk 0:00:02]} 30. Bxg7 {[%clk 0:00:19]}  Kxg7 {[%clk 0:00:03]} 31. Bxh5 {[%clk 0:00:19]}  Kf6 {[%clk 0:00:03]} 32. Rc1 {[%clk 0:00:16]}  a5 {[%clk 0:00:02]} 33. Rc6+ {[%clk 0:00:15]}  Kg7 {[%clk 0:00:01]} 34. Rg6+ {[%clk 0:00:12]}  Kh7 {[%clk 0:00:01]} 35. Ra6 {[%clk 0:00:12]}  a4 {[%clk 0:00:01]} 36. g4 {[%clk 0:00:09]} 1-0


[Site "https://www.chess.com"]

[Event "Early Titled Tuesday Blitz | February 8 2022"]
[White "Vovk, Orest"]
[Black "Osmonbekov, Talaibek"]
[WhiteFideId "14113490"]
[BlackFideId "2017253"]
[WhiteElo "2203"]
[BlackElo "2135"]
[Result "1-0"]
[Round "03"]
[TimeControl "180+1"]
[Date "2022.02.08"]
[WhiteClock "0:00:10"]
[BlackClock "0:00:18"]

1. h4 {[%clk 0:03:00]}  f5 {[%clk 0:02:57]} 2. h5 {[%clk 0:03:00]}  Nf6 {[%clk 0:02:57]} 3. h6 {[%clk 0:03:00]}  g6 {[%clk 0:02:57]} 4. d4 {[%clk 0:03:00]}  e6 {[%clk 0:02:56]} 5. Nc3 {[%clk 0:03:00]}  b6 {[%clk 0:02:56]} 6. Bg5 {[%clk 0:03:01]}  Bb7 {[%clk 0:02:56]} 7. Nf3 {[%clk 0:03:00]}  Be7 {[%clk 0:02:56]} 8. e3 {[%clk 0:02:58]}  O-O {[%clk 0:02:55]} 9. Bc4 {[%clk 0:02:58]}  Ne4 {[%clk 0:02:55]} 10. Nxe4 {[%clk 0:02:53]}  fxe4 {[%clk 0:02:51]} 11. Bxe7 {[%clk 0:02:51]}  Qxe7 {[%clk 0:02:51]} 12. Nd2 {[%clk 0:02:49]}  d5 {[%clk 0:02:47]} 13. Bb3 {[%clk 0:02:46]}  a5 {[%clk 0:02:46]} 14. c4 {[%clk 0:02:38]}  Qf6 {[%clk 0:02:40]} 15. O-O {[%clk 0:02:34]}  Kh8 {[%clk 0:02:31]} 16. f3 {[%clk 0:02:12]}  Qg5 {[%clk 0:02:30]} 17. f4 {[%clk 0:02:04]}  Qxh6 {[%clk 0:02:28]} 18. Qg4 {[%clk 0:02:04]}  Na6 {[%clk 0:02:18]} 19. Qxe6 {[%clk 0:01:58]}  Rae8 {[%clk 0:02:16]} 20. Qh3 {[%clk 0:01:55]}  Qxh3 {[%clk 0:02:08]} 21. gxh3 {[%clk 0:01:56]}  c6 {[%clk 0:02:05]} 22. cxd5 {[%clk 0:01:50]}  cxd5 {[%clk 0:02:05]} 23. a3 {[%clk 0:01:50]}  Bc8 {[%clk 0:01:57]} 24. Bxd5 {[%clk 0:01:38]}  Bxh3 {[%clk 0:01:53]} 25. Rfc1 {[%clk 0:01:30]}  Bf5 {[%clk 0:01:46]} 26. Rc6 {[%clk 0:01:20]}  Nb8 {[%clk 0:01:29]} 27. Rxb6 {[%clk 0:01:16]}  Nd7 {[%clk 0:01:29]} 28. Rb5 {[%clk 0:01:10]}  Rb8 {[%clk 0:01:26]} 29. Bc6 {[%clk 0:01:01]}  Nf6 {[%clk 0:01:19]} 30. Rxb8 {[%clk 0:00:47]}  Rxb8 {[%clk 0:01:18]} 31. Rb1 {[%clk 0:00:47]}  Ng4 {[%clk 0:01:17]} 32. Nc4 {[%clk 0:00:43]}  h5 {[%clk 0:01:04]} 33. b4 {[%clk 0:00:41]}  axb4 {[%clk 0:01:01]} 34. axb4 {[%clk 0:00:42]}  h4 {[%clk 0:00:57]} 35. b5 {[%clk 0:00:32]}  h3 {[%clk 0:00:56]} 36. Rb2 {[%clk 0:00:28]}  Kg7 {[%clk 0:00:55]} 37. b6 {[%clk 0:00:26]}  Kf6 {[%clk 0:00:31]} 38. b7 {[%clk 0:00:26]}  g5 {[%clk 0:00:31]} 39. fxg5+ {[%clk 0:00:22]}  Kxg5 {[%clk 0:00:32]} 40. Ra2 {[%clk 0:00:19]}  h2+ {[%clk 0:00:26]} 41. Kh1 {[%clk 0:00:16]}  Rh8 {[%clk 0:00:26]} 42. Rb2 {[%clk 0:00:11]}  Kh4 {[%clk 0:00:20]} 43. b8=Q {[%clk 0:00:08]}  Rxb8 {[%clk 0:00:20]} 44. Rxb8 {[%clk 0:00:09]}  Kg3 {[%clk 0:00:20]} 45. Rb2 {[%clk 0:00:09]}  Nf2+ {[%clk 0:00:17]} 46. Rxf2 {[%clk 0:00:08]}  Kxf2 {[%clk 0:00:18]} 47. Kxh2 {[%clk 0:00:09]}  Bg4 {[%clk 0:00:16]} 48. Bxe4 {[%clk 0:00:07]}  Be2 {[%clk 0:00:17]} 49. Bd5 {[%clk 0:00:07]}  Bxc4 {[%clk 0:00:16]} 50. Bxc4 {[%clk 0:00:07]}  Kxe3 {[%clk 0:00:17]} 51. d5 {[%clk 0:00:08]}  Kd4 {[%clk 0:00:18]} 52. d6 {[%clk 0:00:09]}  Kxc4 {[%clk 0:00:18]} 53. d7 {[%clk 0:00:10]} 1-0


[Site "https://www.chess.com"]

[Event "Early Titled Tuesday Blitz | February 8 2022"]
[White "Weetik, Vjacheslav"]
[Black "Estrada Nieto, Julian"]
[WhiteFideId "4153472"]
[BlackFideId "5101018"]
[WhiteElo "2469"]
[BlackElo "2246"]
[Result "1-0"]
[Round "03"]
[TimeControl "180+1"]
[Date "2022.02.08"]
[WhiteClock "0:00:19"]
[BlackClock "0:00:47"]

1. d4 {[%clk 0:02:59]}  d5 {[%clk 0:03:00]} 2. Bf4 {[%clk 0:02:59]}  Nf6 {[%clk 0:03:00]} 3. e3 {[%clk 0:02:59]}  c5 {[%clk 0:03:00]} 4. c3 {[%clk 0:03:00]}  Nc6 {[%clk 0:03:00]} 5. Nd2 {[%clk 0:03:00]}  e6 {[%clk 0:03:01]} 6. Bd3 {[%clk 0:03:00]}  h6 {[%clk 0:02:56]} 7. Rc1 {[%clk 0:02:55]}  Bd6 {[%clk 0:02:55]} 8. Bxd6 {[%clk 0:02:55]}  Qxd6 {[%clk 0:02:55]} 9. f4 {[%clk 0:02:55]}  O-O {[%clk 0:02:54]} 10. Ngf3 {[%clk 0:02:55]}  cxd4 {[%clk 0:02:47]} 11. cxd4 {[%clk 0:02:55]}  Nb4 {[%clk 0:02:40]} 12. Bb1 {[%clk 0:02:55]}  Qa6 {[%clk 0:02:33]} 13. Ne5 {[%clk 0:02:15]}  Nxa2 {[%clk 0:02:11]} 14. Rc7 {[%clk 0:02:06]}  Qb6 {[%clk 0:02:00]} 15. Rc5 {[%clk 0:01:15]}  Nb4 {[%clk 0:01:58]} 16. O-O {[%clk 0:01:03]}  Bd7 {[%clk 0:01:58]} 17. g4 {[%clk 0:00:55]}  Bb5 {[%clk 0:01:44]} 18. g5 {[%clk 0:00:52]}  hxg5 {[%clk 0:01:27]} 19. fxg5 {[%clk 0:00:51]}  Bxf1 {[%clk 0:01:16]} 20. gxf6 {[%clk 0:00:47]}  Bh3 {[%clk 0:00:58]} 21. Bh7+ {[%clk 0:00:20]}  Kxh7 {[%clk 0:00:55]} 22. Qh5+ {[%clk 0:00:20]}  Kg8 {[%clk 0:00:54]} 23. Qg5 {[%clk 0:00:20]}  g6 {[%clk 0:00:47]} 24. Qh6 {[%clk 0:00:19]} 1-0


[Site "https://www.chess.com"]

[Event "Early Titled Tuesday Blitz | February 8 2022"]
[White "Weishaeutel, Moritz"]
[Black "Hansen, Eric"]
[WhiteFideId "12967300"]
[BlackFideId "2606771"]
[WhiteElo "2002"]
[BlackElo "2568"]
[Result "1-0"]
[Round "03"]
[TimeControl "180+1"]
[Date "2022.02.08"]
[WhiteClock "0:00:43"]
[BlackClock "0:00:08"]

1. e4 {[%clk 0:02:59]}  e5 {[%clk 0:02:46]} 2. Nf3 {[%clk 0:02:58]}  Nc6 {[%clk 0:02:45]} 3. Nc3 {[%clk 0:02:59]}  Nf6 {[%clk 0:02:41]} 4. a3 {[%clk 0:03:00]}  Be7 {[%clk 0:02:29]} 5. d4 {[%clk 0:02:59]}  d6 {[%clk 0:02:26]} 6. dxe5 {[%clk 0:02:57]}  Nxe5 {[%clk 0:02:24]} 7. Nxe5 {[%clk 0:02:57]}  dxe5 {[%clk 0:02:25]} 8. Qxd8+ {[%clk 0:02:57]}  Bxd8 {[%clk 0:02:25]} 9. f3 {[%clk 0:02:55]}  c6 {[%clk 0:02:22]} 10. Bc4 {[%clk 0:02:55]}  b5 {[%clk 0:02:21]} 11. Bb3 {[%clk 0:02:55]}  Bb6 {[%clk 0:02:21]} 12. Bg5 {[%clk 0:02:53]}  h6 {[%clk 0:02:20]} 13. Bh4 {[%clk 0:02:38]}  Ke7 {[%clk 0:02:18]} 14. O-O-O {[%clk 0:02:34]}  Re8 {[%clk 0:02:14]} 15. Rd3 {[%clk 0:02:33]}  Kf8 {[%clk 0:02:05]} 16. Rhd1 {[%clk 0:02:28]}  g5 {[%clk 0:01:56]} 17. Bg3 {[%clk 0:02:24]}  Bc5 {[%clk 0:01:40]} 18. Rd8 {[%clk 0:02:17]}  Be3+ {[%clk 0:01:34]} 19. Kb1 {[%clk 0:02:16]}  Bf4 {[%clk 0:01:32]} 20. Bf2 {[%clk 0:02:07]}  g4 {[%clk 0:01:33]} 21. Bc5+ {[%clk 0:01:56]}  Kg7 {[%clk 0:01:33]} 22. Rxe8 {[%clk 0:01:57]}  Nxe8 {[%clk 0:01:34]} 23. Rd8 {[%clk 0:01:57]}  Nf6 {[%clk 0:01:32]} 24. Bf8+ {[%clk 0:01:47]}  Kg6 {[%clk 0:01:31]} 25. Be7 {[%clk 0:01:30]}  gxf3 {[%clk 0:01:16]} 26. gxf3 {[%clk 0:01:31]}  Bb7 {[%clk 0:00:39]} 27. Rd6 {[%clk 0:01:27]}  Bg5 {[%clk 0:00:39]} 28. f4 {[%clk 0:01:11]}  Bxf4 {[%clk 0:00:16]} 29. Rxf6+ {[%clk 0:01:09]}  Kh5 {[%clk 0:00:17]} 30. Bxf7+ {[%clk 0:01:06]}  Kg4 {[%clk 0:00:17]} 31. Be6+ {[%clk 0:00:57]}  Kf3 {[%clk 0:00:17]} 32. h3 {[%clk 0:00:56]}  Re8 {[%clk 0:00:16]} 33. Bd6 {[%clk 0:00:56]}  Kg2 {[%clk 0:00:13]} 34. Bg4 {[%clk 0:00:50]}  a5 {[%clk 0:00:12]} 35. Ne2 {[%clk 0:00:47]}  Bh2 {[%clk 0:00:11]} 36. Bc5 {[%clk 0:00:44]}  Bc8 {[%clk 0:00:08]} 37. Rf2+ {[%clk 0:00:43]}  Kh1 {[%clk 0:00:08]} 38. Bf3# {[%clk 0:00:43]} 1-0


[Site "https://www.chess.com"]